bitfinex-derivatives/quotes_BNBF0:USTF0_20250302
["timestamp","ask_amount","ask_price","bid_price","bid_amount"]
[1740937540085,0.26460467,635.06,633.87,1.129]
[1740937540286,0.26451583,635.05,633.87,1.129]
[1740937540986,0.79,635.04,633.87,1.129]
[1740937541289,0.26451583,635.03,633.88,0.944]
[1740937544788,0.79,635.04,633.88,0.944]
[1740937544988,0.26444811,635.03,633.88,0.944]
[1740937546989,0.26444811,635.03,633.89,1.085]
[1740937548692,0.79,635.04,633.89,1.085]
[1740937549697,0.26442772,635.03,633.89,1.085]
[1740937552907,0.26442772,635.02,633.89,1.085]
[1740937553099,0.79,635.04,633.89,1.085]
[1740937553100,0.26442772,635.01,633.89,1.085]
[1740937553300,0.26442772,635.0,633.89,1.085]
[1740937553602,0.26442772,634.99,633.89,1.085]
[1740937553801,0.26442772,634.98,633.89,1.085]
[1740937554003,0.26442772,634.97,633.89,1.085]
[1740937554203,0.26442772,634.96,633.89,1.085]
[1740937554399,0.26442772,634.95,633.89,1.085]
[1740937554703,0.26461564,634.94,633.89,1.085]
[1740937554903,0.26461564,634.93,633.89,1.085]
[1740937555103,0.26461564,635.03,633.9,0.741]
[1740937555303,0.26461564,635.02,633.9,0.741]
[1740937555503,0.26461564,635.01,633.9,0.741]
[1740937555799,0.26461564,635.0,633.9,0.741]
[1740937556303,0.26462358,634.99,633.9,0.741]
[1740937556504,0.26462246,634.98,633.9,0.741]
[1740937556704,0.26462246,634.97,633.9,0.741]
[1740937557004,0.26462246,634.96,633.9,0.741]
[1740937557202,0.26462246,634.95,633.9,0.741]
[1740937557403,0.26462246,634.94,633.9,0.741]
[1740937557704,0.26462246,634.93,633.9,0.741]
[1740937558204,0.26462246,634.92,633.9,0.741]
[1740937558398,0.26462246,634.98,633.9,0.741]
[1740937558602,0.26462246,634.97,633.9,0.741]
[1740937558802,0.26462246,634.98,633.9,0.741]
[1740937558999,0.26462246,634.97,633.9,0.741]
[1740937559305,0.26462246,634.96,633.9,0.741]
[1740937559605,0.26462246,634.95,633.9,0.741]
[1740937559800,0.26462246,634.94,633.9,0.741]
[1740937560106,0.26462246,634.93,633.9,0.741]
[1740937560299,0.26462246,634.92,633.9,0.741]
[1740937560502,0.26462246,634.98,633.9,0.741]
[1740937560703,0.26462358,634.99,633.9,0.741]
[1740937560900,0.26454809,634.98,633.9,0.741]
[1740937561204,0.26448663,634.97,633.9,0.741]
[1740937561503,0.26462358,634.99,633.9,0.741]
[1740937561905,0.26462358,634.99,633.91,1.03222678]
[1740937562205,0.26462358,634.99,633.92,1.03222678]
[1740937562505,0.26462358,634.99,633.93,1.03222678]
[1740937562899,0.26462358,634.99,633.94,1.03222678]
[1740937563304,0.26462358,634.99,633.95,2.17422678]
[1740937563506,0.26462358,634.99,633.96,1.03222678]
[1740937563706,0.26462358,634.99,633.97,0.28942767]
[1740937563903,0.26462358,634.99,633.97,1.03222678]
[1740937564300,0.26462358,634.99,633.98,1.32165216]
[1740937564502,0.26462358,634.99,633.98,1.03222678]
[1740937564703,0.26462358,634.99,633.99,1.32164389]
[1740937564900,0.26462358,634.99,634.0,0.28945043]
[1740937565108,0.26462358,634.99,634.0,1.32167721]
[1740937565305,0.26462358,634.99,634.0,1.03222678]
[1740937565507,0.26462358,634.99,634.01,1.32167554]
[1740937565706,0.26462358,634.99,634.02,0.28944876]
[1740937566008,0.26462358,634.99,634.03,1.03222678]
[1740937566307,0.26462358,634.99,634.04,0.28944876]
[1740937566508,0.26462358,634.99,634.05,1.03222678]
[1740937566807,0.26462358,634.99,633.95,1.142]
[1740937566808,0.26462358,634.99,634.06,1.32168548]
[1740937567007,0.26462358,634.99,634.07,1.03222678]
[1740937567308,0.26462358,634.99,634.08,0.2894587]
[1740937567507,0.26462358,634.99,634.09,1.03222678]
[1740937568006,0.26462358,634.99,634.1,1.03222678]
[1740937568205,1.099,634.98,634.1,1.92422678]
[1740937568407,1.099,634.98,634.11,1.03222678]
[1740937568807,1.099,634.98,634.12,1.03222678]
[1740937569002,1.099,634.98,634.13,1.03222678]
[1740937569710,1.099,634.98,634.14,1.03222678]
[1740937570008,1.099,634.98,634.15,1.03222678]
[1740937570404,1.099,634.98,634.16,1.03222678]
[1740937570809,1.099,634.98,634.1,0.892]
[1740937571607,0.26445084,634.97,634.1,0.892]
[1740937572011,0.26445084,634.97,634.13,1.1659557]
[1740937572713,0.31498543,634.95,634.13,1.1659557]
[1740937572905,0.26445084,634.94,634.13,1.1659557]
[1740937573108,0.26445084,634.94,634.14,1.039]
[1740937575311,0.26445084,634.93,634.14,1.039]
[1740937575508,0.26445084,634.92,634.14,1.039]
[1740937575715,0.26445084,634.91,634.14,1.039]
[1740937576008,0.26445084,634.9,634.14,1.039]
[1740937576207,0.57946603,634.89,634.14,1.039]
[1740937576412,0.31501519,634.89,634.14,1.039]
[1740937576612,0.26466341,634.88,634.14,1.039]
[1740937577707,0.31501519,634.89,634.14,1.039]
[1740937578016,0.26453561,634.88,634.14,1.039]
[1740937579614,0.31501519,634.89,634.14,1.039]
[1740937579813,0.26449251,634.88,634.14,1.039]
[1740937581217,0.31501519,634.89,634.14,1.039]
[1740937581417,0.2645384,634.88,634.14,1.039]
[1740937582117,0.31501519,634.89,634.14,1.039]
[1740937582310,0.26453498,634.88,634.14,1.039]
[1740937583618,0.31501519,634.89,634.14,1.039]
[1740937584519,0.26454306,634.88,634.14,1.039]
[1740937584720,0.31501519,634.89,634.14,1.039]
[1740937587224,0.26456411,634.88,634.14,1.039]
[1740937587520,0.31502512,634.87,634.14,1.039]
[1740937587725,0.26456411,634.86,634.14,1.039]
[1740937587927,0.31503504,634.85,634.14,1.039]
[1740937588227,0.26456411,634.84,634.14,1.039]
[1740937589527,0.26455757,634.83,634.14,1.039]
[1740937589725,0.26455757,634.84,634.14,1.039]
[1740937589926,0.26455757,634.83,634.14,1.039]
[1740937590127,0.26455757,634.82,634.14,1.039]
[1740937590325,0.31503504,634.85,634.14,1.039]
[1740937590521,0.2645288,634.84,634.14,1.039]
[1740937590932,0.31503504,634.85,634.14,1.039]
[1740937591428,0.26447037,634.84,634.15,0.968]
[1740937592326,0.31503504,634.85,634.15,0.968]
[1740937593526,0.26444803,634.84,634.15,0.968]
[1740937594230,0.31503504,634.85,634.15,0.968]
[1740937594231,0.26448609,634.83,634.15,0.968]
[1740937594429,0.26448609,634.82,634.15,0.968]
[1740937594724,0.26448609,634.81,634.15,0.968]
[1740937594936,0.26448609,634.84,634.15,0.968]
[1740937595129,0.26448609,634.83,634.15,0.968]
[1740937595428,0.26448609,634.82,634.15,2.075]
[1740937595627,0.26448609,634.84,634.15,2.075]
[1740937595829,0.26452549,634.83,634.15,2.075]
[1740937596129,0.26452549,634.82,634.15,2.075]
[1740937596328,0.26452549,634.81,634.15,2.075]
[1740937596530,0.26452549,634.8,634.15,2.075]
[1740937596729,0.26452549,634.84,634.15,2.075]
[1740937598533,1.176,634.83,634.15,2.075]
[1740937598729,0.26452549,634.82,634.15,2.075]
[1740937603835,1.176,634.83,634.15,2.075]
[1740937604036,0.2645557,634.82,634.15,2.075]
[1740937605437,0.31505489,634.81,634.15,2.075]
[1740937605638,0.2645557,634.8,634.15,2.075]
[1740937607033,0.26451676,634.79,634.15,2.075]
[1740937607236,0.26451676,634.8,634.15,2.075]
[1740937607433,0.26451676,634.79,634.15,2.075]
[1740937607633,0.26451676,634.8,634.15,2.075]
[1740937607835,0.26451676,634.78,634.15,2.075]
[1740937608038,0.26451676,634.77,634.15,2.075]
[1740937608234,0.26451676,634.8,634.15,2.075]
[1740937608433,0.26451676,634.79,634.15,2.075]
[1740937608632,0.26451676,634.78,634.15,2.075]
[1740937608835,0.26451676,634.8,634.15,2.075]
[1740937609035,0.26451676,634.79,634.15,2.075]
[1740937609234,0.26451676,634.8,634.15,2.075]
[1740937609539,0.26451676,634.79,634.15,2.075]
[1740937609733,0.26451676,634.78,634.15,2.075]
[1740937609938,0.26451676,634.77,634.15,2.075]
[1740937610131,0.26451676,634.8,634.15,2.075]
[1740937611338,0.31506482,634.79,634.15,2.075]
[1740937611639,0.26451676,634.78,634.15,2.075]
[1740937612239,0.31507475,634.77,634.15,2.075]
[1740937612439,0.26451676,634.76,634.15,2.075]
[1740937612641,0.31508467,634.75,634.15,2.075]
[1740937612939,0.26451676,634.74,634.15,2.075]
[1740937613239,0.3150946,634.73,634.15,2.075]
[1740937613441,0.26451676,634.72,634.15,2.075]
[1740937613739,0.31510453,634.71,634.15,2.075]
[1740937613935,0.26451676,634.7,634.15,2.075]
[1740937616546,0.31510453,634.71,634.15,2.075]
[1740937616844,0.26467034,634.7,634.15,2.075]
[1740937620451,0.26467034,634.7,634.15,1.107]
[1740937621251,0.26462572,634.69,634.15,1.107]
[1740937621443,0.26462572,634.7,634.15,1.107]
[1740937622444,0.26462572,634.7,634.07,1.033]
[1740937623748,0.26462572,634.7,634.07,1.901]
[1740937623952,0.31510453,634.71,634.07,1.901]
[1740937625054,1.172,634.78,634.07,1.901]
[1740937625654,1.172,634.78,634.08,0.839]
[1740937630957,1.172,634.78,634.09,1.02513868]
[1740937631353,1.172,634.78,634.08,0.839]
[1740937631553,1.172,634.78,634.1,1.02462578]
[1740937632354,1.172,634.78,634.11,1.02462578]
[1740937633160,1.172,634.78,634.12,1.62942985]
[1740937633354,1.172,634.78,634.13,0.2894]
[1740937633560,1.172,634.78,634.13,1.31402578]
[1740937633760,1.172,634.78,634.14,1.02462578]
[1740937634156,1.172,634.78,634.15,1.02462578]
[1740937634563,1.172,634.78,634.16,1.02462578]
[1740937635161,1.172,634.78,634.17,1.02462578]
[1740937635663,1.172,634.78,634.18,1.02462578]
[1740937636357,1.172,634.78,634.19,1.02462578]
[1740937636563,1.172,634.78,634.2,1.02462578]
[1740937637264,1.172,634.78,634.21,1.02462578]
[1740937637463,1.172,634.78,634.22,1.02462578]
[1740937637858,1.172,634.78,634.08,0.839]
[1740937638066,1.172,634.78,634.09,1.02214278]
[1740937638663,1.172,634.78,634.08,0.839]
[1740937638865,1.172,634.78,634.07,1.901]
[1740937640270,0.264478,634.77,634.07,1.901]
[1740937642069,1.172,634.78,634.08,0.961]
[1740937643672,1.172,634.78,634.09,1.01820916]
[1740937643971,1.172,634.78,634.1,1.01820916]
[1740937644173,1.172,634.78,634.11,1.01820916]
[1740937644773,0.26440567,634.77,634.08,0.961]
[1740937647072,0.26440567,634.77,634.09,0.768]
[1740937648975,0.26440567,634.76,634.09,0.768]
[1740937649176,0.26440567,634.75,634.09,0.768]
[1740937649376,0.26440567,634.98,634.09,0.768]
[1740937649576,0.57938118,634.97,634.09,0.768]
[1740937649874,0.57938614,634.96,634.09,0.768]
[1740937650076,0.26462358,634.99,634.09,0.768]
[1740937650077,0.5793911,634.95,634.09,0.768]
[1740937650378,0.57939606,634.94,634.09,0.768]
[1740937650577,0.26440567,634.93,634.09,0.768]
[1740937651777,0.828,634.92,634.09,0.768]
[1740937651978,0.26440567,634.91,634.09,0.768]
[1740937652178,0.31501519,634.89,634.09,0.768]
[1740937652379,0.26440567,634.88,634.09,0.768]
[1740937653479,0.26440567,634.87,634.09,0.768]
[1740937653780,0.26440567,634.86,634.09,0.768]
[1740937653972,0.26440567,634.85,634.09,0.768]
[1740937654177,0.26440567,634.84,634.09,0.768]
[1740937654377,0.31501519,634.89,634.09,0.768]
[1740937654378,0.26440567,634.83,634.09,0.768]
[1740937654575,0.26440567,634.82,634.09,0.768]
[1740937654777,0.26440567,634.81,634.09,0.768]
[1740937654980,0.26440567,634.8,634.09,0.768]
[1740937655183,0.26440567,634.79,634.09,0.768]
[1740937655481,0.26440567,634.78,634.09,0.768]
[1740937655677,0.26440567,634.77,634.09,0.768]
[1740937655980,0.26440567,634.76,634.09,0.768]
[1740937656180,0.26440567,634.75,634.09,0.768]
[1740937656382,0.31501519,634.89,634.09,0.768]
[1740937656579,0.26496862,634.88,634.09,0.768]
[1740937656779,0.31501519,634.89,634.09,0.768]
[1740937656780,0.26496862,634.87,634.09,0.768]
[1740937656981,0.26496862,634.86,634.09,0.768]
[1740937657182,0.26496862,634.85,634.09,0.768]
[1740937657381,0.26496862,634.84,634.09,0.768]
[1740937657683,0.26496862,634.83,634.09,0.768]
[1740937657877,0.26496862,634.82,634.09,0.768]
[1740937658075,0.26496862,634.81,634.09,0.768]
[1740937658375,0.26496862,634.8,634.09,0.768]
[1740937658580,0.26496862,634.79,634.09,0.768]
[1740937658880,0.26496862,634.78,634.09,0.768]
[1740937659185,0.26496862,634.77,634.09,0.768]
[1740937659376,0.26496862,634.76,634.09,0.768]
[1740937659579,0.26496862,634.75,634.09,0.768]
[1740937659779,0.31501519,634.89,634.09,0.768]
[1740937659981,0.26503126,634.88,634.09,0.768]
[1740937660178,0.26503126,634.87,634.09,0.768]
[1740937660381,0.26503126,634.86,634.09,0.768]
[1740937660582,0.5800663,634.85,634.09,0.768]
[1740937660783,0.26503126,634.84,634.09,0.768]
[1740937661079,0.26503126,634.83,634.09,0.768]
[1740937661282,0.26503126,634.82,634.09,0.768]
[1740937661685,0.26503126,634.81,634.09,0.768]
[1740937661887,0.26503126,634.8,634.09,0.768]
[1740937662183,0.26503126,634.79,634.09,0.768]
[1740937662389,0.26503126,634.78,634.09,0.768]
[1740937662584,0.31503504,634.85,634.09,0.768]
[1740937662785,0.26512399,634.84,634.09,0.768]
[1740937662986,0.26512399,634.83,634.09,0.768]
[1740937663185,0.26512399,634.82,634.09,0.768]
[1740937663484,0.26512399,634.81,634.09,0.768]
[1740937663685,0.26512399,634.8,634.09,0.768]
[1740937663887,0.26512399,634.79,634.09,0.768]
[1740937664081,0.26512399,634.78,634.09,0.768]
[1740937664286,0.26512399,634.77,634.09,0.768]
[1740937664489,0.26512399,634.76,634.09,0.768]
[1740937664689,0.26512399,634.75,634.09,0.768]
[1740937664889,0.26512399,634.74,634.09,0.768]
[1740937665088,0.26512399,634.73,634.09,0.768]
[1740937665290,0.26512399,634.72,634.09,0.768]
[1740937665488,0.26512399,634.71,634.09,0.768]
[1740937665686,0.26512399,634.7,634.09,0.768]
[1740937665884,0.26512399,634.69,634.09,0.768]
[1740937666088,0.26512399,634.68,634.09,0.768]
[1740937666290,0.26512399,634.67,634.09,0.768]
[1740937666591,0.26512399,634.66,634.09,0.768]
[1740937666791,0.26512399,634.65,634.09,0.768]
[1740937667092,0.26512399,634.64,634.09,0.768]
[1740937667293,0.26512399,634.63,634.09,0.768]
[1740937667591,0.26512399,634.62,634.09,0.768]
[1740937667787,0.26512399,634.61,634.09,0.768]
[1740937667989,0.26512399,634.6,634.09,0.768]
[1740937668185,0.26512399,634.59,634.09,0.768]
[1740937668388,0.26512399,634.58,634.09,0.768]
[1740937668590,0.26512399,634.57,634.09,0.768]
[1740937668786,0.26512399,634.56,634.09,0.768]
[1740937668993,0.26512399,634.55,634.09,0.768]
[1740937669203,0.26512399,634.54,634.09,0.768]
[1740937669401,0.26512399,634.53,634.09,0.768]
[1740937669602,0.26512399,634.52,634.09,0.768]
[1740937669901,0.26512399,634.51,634.09,0.768]
[1740937670102,0.26512399,634.5,634.09,0.768]
[1740937670303,0.26512399,634.49,634.09,0.768]
[1740937670604,0.26512399,634.48,634.09,0.768]
[1740937670803,0.26512399,634.47,634.09,0.768]
[1740937671103,0.706,634.72,634.09,0.768]
[1740937671304,0.26525317,634.71,634.09,0.768]
[1740937671500,0.26525317,634.7,634.09,0.768]
[1740937671698,0.26525317,634.69,634.09,0.768]
[1740937672003,0.26525317,634.68,634.09,0.768]
[1740937672197,0.26525317,634.67,634.09,0.768]
[1740937672403,0.26525317,634.66,634.09,0.768]
[1740937672704,0.26525317,634.65,634.09,0.768]
[1740937672906,0.26525317,634.64,634.09,0.768]
[1740937673102,0.26525317,634.63,634.09,0.768]
[1740937673299,0.26525317,634.62,634.09,0.768]
[1740937673501,0.26525317,634.61,634.09,0.768]
[1740937673699,0.26525317,634.6,634.09,0.768]
[1740937673900,0.26525317,634.59,634.09,0.768]
[1740937674106,0.26525317,634.58,634.09,0.768]
[1740937674308,0.26525317,634.57,634.09,0.768]
[1740937674505,0.26525317,634.56,634.09,0.768]
[1740937674701,0.26525317,634.55,634.09,0.768]
[1740937674908,0.26525317,634.54,634.09,0.768]
[1740937675208,0.26525317,634.53,634.09,0.768]
[1740937675507,0.26525317,634.52,634.09,0.768]
[1740937675709,0.58045702,634.51,634.09,0.768]
[1740937675909,0.26525317,634.5,634.09,0.768]
[1740937676405,0.31520385,634.51,634.09,0.768]
[1740937676601,0.26538908,634.5,634.09,0.768]
[1740937676806,0.31520385,634.51,634.09,0.768]
[1740937676807,0.26538908,634.49,634.09,0.768]
[1740937677103,0.31520385,634.51,634.09,0.768]
[1740937677104,0.26538908,634.48,634.09,0.768]
[1740937677308,0.26538908,634.47,633.76,0.797]
[1740937677609,0.26538908,634.46,633.76,0.797]
[1740937677808,0.26538908,634.45,633.76,0.797]
[1740937678001,0.26538908,634.44,633.76,0.797]
[1740937678200,0.26538908,634.43,633.16,0.785]
[1740937678402,0.26538908,634.42,633.16,0.785]
[1740937678601,0.26538908,634.41,633.16,0.785]
[1740937678801,0.26538908,634.4,633.16,0.785]
[1740937679107,0.26538908,634.39,633.16,0.785]
[1740937679302,0.26538908,634.38,633.16,0.785]
[1740937679609,0.26538908,634.37,633.16,0.785]
[1740937679802,0.26538908,634.36,633.16,0.785]
[1740937680006,0.26538908,634.35,633.16,0.785]
[1740937680208,0.26538908,634.34,633.16,0.785]
[1740937680504,0.26538908,634.33,633.16,0.785]
[1740937680709,0.26538908,634.32,633.16,0.785]
[1740937681129,0.26538908,634.31,633.16,0.785]
[1740937681303,0.26538908,634.3,633.16,0.785]
[1740937681709,0.26538908,634.29,633.16,0.785]
[1740937681903,0.26538908,634.28,633.16,0.785]
[1740937682108,0.26538908,634.27,633.16,0.785]
[1740937682308,0.26538908,634.26,633.16,0.785]
[1740937682507,0.26538908,634.25,633.16,0.785]
[1740937682807,0.26538908,634.24,633.16,0.785]
[1740937683008,0.26538908,634.23,633.16,0.785]
[1740937683308,0.26538908,634.22,633.16,0.785]
[1740937683505,0.26538908,634.21,633.16,0.785]
[1740937683707,0.31520385,634.51,633.16,0.785]
[1740937683708,0.26538908,634.2,633.16,0.785]
[1740937683911,2.39249912,634.46,633.16,0.785]
[1740937684107,0.26575772,634.45,633.16,0.785]
[1740937684307,0.26575772,634.44,633.16,0.785]
[1740937684603,0.26575772,634.43,633.16,0.785]
[1740937684809,0.26575772,634.42,633.16,0.785]
[1740937685010,0.26575772,634.41,633.16,0.785]
[1740937685206,0.26575772,634.4,633.16,0.785]
[1740937685512,0.26575772,634.39,633.16,0.785]
[1740937685714,0.26575772,634.38,633.16,0.785]
[1740937685914,0.26575772,634.37,633.16,0.785]
[1740937686113,0.26575772,634.36,633.16,0.785]
[1740937686311,0.26575772,634.35,633.16,0.785]
[1740937686512,0.26575772,634.34,633.16,0.785]
[1740937686711,0.26575772,634.33,633.16,0.785]
[1740937686912,0.26575772,634.32,633.16,0.785]
[1740937687314,0.26575772,634.31,633.16,0.785]
[1740937687511,0.26575772,634.3,633.16,0.785]
[1740937687712,0.26575772,634.29,633.16,0.785]
[1740937687916,0.26575772,634.28,633.16,0.785]
[1740937688216,0.26575772,634.27,633.16,0.785]
[1740937688415,0.26575772,634.26,633.16,0.785]
[1740937688618,0.26575772,634.25,633.16,0.785]
[1740937688917,0.26575772,634.24,633.16,0.785]
[1740937689118,0.26575772,634.23,633.16,0.785]
[1740937689319,0.26575772,634.22,633.16,0.785]
[1740937689619,0.31520385,634.51,633.16,0.785]
[1740937689620,0.26575772,634.21,633.16,0.785]
[1740937689819,0.26575772,634.2,633.16,0.785]
[1740937690019,0.26575772,634.19,633.16,0.785]
[1740937690219,0.26575772,634.18,633.16,0.785]
[1740937690616,0.26575772,634.17,633.16,0.785]
[1740937690819,0.26575772,634.16,633.16,0.785]
[1740937691020,0.26575772,634.15,633.16,0.785]
[1740937691420,0.26575772,634.14,633.16,0.785]
[1740937691621,0.26575772,634.13,633.16,0.785]
[1740937691820,0.26575772,634.12,633.16,0.785]
[1740937692021,0.26575772,634.11,633.16,0.785]
[1740937692222,0.26575772,634.1,633.16,0.785]
[1740937692419,0.26575772,634.09,633.16,0.785]
[1740937692617,0.26575772,634.08,633.16,0.785]
[1740937692818,0.26575772,634.07,633.16,0.785]
[1740937693020,0.26575772,634.06,633.16,0.785]
[1740937693220,0.26575772,634.05,633.16,0.785]
[1740937693422,0.26575772,634.04,633.16,0.785]
[1740937693621,0.26575772,634.03,633.16,0.785]
[1740937693822,0.26575772,634.02,633.16,0.785]
[1740937694020,0.26575772,634.01,633.16,0.785]
[1740937694221,0.26575772,634.0,633.16,0.785]
[1740937694419,0.26575772,633.99,633.16,0.785]
[1740937694619,0.26575772,633.98,633.16,0.785]
[1740937694819,0.26575772,633.97,633.16,0.785]
[1740937695023,0.26575772,633.96,633.16,0.785]
[1740937695318,0.26575772,633.95,633.16,0.785]
[1740937695523,0.26551891,633.94,633.16,0.785]
[1740937695723,0.26551891,633.93,633.16,0.785]
[1740937695926,0.58101613,633.92,633.16,0.785]
[1740937696120,0.26551891,633.91,633.16,0.785]
[1740937696324,0.26551891,633.9,633.16,0.785]
[1740937696522,0.26551891,633.89,633.16,0.785]
[1740937696727,0.26551891,633.88,633.16,0.785]
[1740937696922,0.26551891,633.87,633.16,0.785]
[1740937697226,0.26551891,633.86,633.16,0.785]
[1740937697421,0.26551891,633.85,633.16,0.785]
[1740937697626,0.26551891,633.84,633.16,0.785]
[1740937697928,0.26551891,633.83,633.16,0.785]
[1740937698221,0.26551891,633.82,633.16,0.785]
[1740937698527,0.26551891,633.81,632.69,0.866]
[1740937698829,0.26551891,633.8,632.69,0.866]
[1740937699122,0.26551891,633.79,632.69,0.866]
[1740937699326,0.26551891,633.78,632.69,0.866]
[1740937699528,0.26573966,633.77,632.69,0.866]
[1740937699830,0.26573966,633.76,632.69,0.866]
[1740937700026,0.26573966,633.75,632.69,0.866]
[1740937700227,0.26573966,633.74,632.69,0.866]
[1740937700528,0.31549722,633.92,632.69,0.866]
[1740937700529,0.26573966,633.73,632.69,0.866]
[1740937700729,0.26573966,633.72,632.69,0.866]
[1740937701229,0.26573966,633.71,632.69,0.866]
[1740937701429,0.26573966,633.7,632.69,0.866]
[1740937701830,0.26573966,633.69,632.69,0.866]
[1740937702029,0.26573966,633.68,632.69,0.866]
[1740937702229,0.26573966,633.67,632.69,0.866]
[1740937702429,0.31549722,633.92,632.69,0.866]
[1740937702629,0.2658498,633.91,632.69,0.866]
[1740937702929,0.2658498,633.9,632.69,0.866]
[1740937703134,2.39249912,633.6,632.69,0.866]
[1740937703429,0.2658498,633.59,632.69,0.866]
[1740937703629,0.2658498,633.58,632.69,0.866]
[1740937703826,0.26582752,633.57,632.69,0.866]
[1740937704027,0.26582752,633.56,632.69,0.866]
[1740937704225,0.26582752,633.55,632.69,0.866]
[1740937704427,0.26582752,633.54,632.69,0.866]
[1740937704628,0.26582752,633.53,632.69,0.866]
[1740937704832,0.26582752,633.52,632.26,1.284]
[1740937705132,0.26582752,633.51,632.26,1.284]
[1740937705325,0.31549722,633.92,632.26,1.284]
[1740937705529,0.26570511,633.91,632.26,1.284]
[1740937705731,0.26570511,633.9,632.26,1.284]
[1740937705924,0.26570511,633.89,632.26,1.284]
[1740937706129,0.26570511,633.88,632.26,1.284]
[1740937706329,0.26570511,633.87,632.26,1.284]
[1740937706531,0.26570511,633.86,632.26,1.284]
[1740937706732,0.26570511,633.85,632.26,1.284]
[1740937707031,0.26583051,633.84,632.26,1.284]
[1740937707225,0.26583051,633.83,632.26,1.284]
[1740937707433,0.26583051,633.82,632.24,0.942]
[1740937707633,0.26583051,633.81,632.24,0.942]
[1740937707834,0.26583051,633.8,632.24,0.942]
[1740937708034,0.26583051,633.79,632.24,0.942]
[1740937708229,0.26583051,633.78,632.24,0.942]
[1740937708426,0.26583051,633.77,632.24,0.942]
[1740937708631,0.26583051,633.76,632.24,0.942]
[1740937708829,0.26583051,633.75,632.24,0.942]
[1740937709034,0.26583051,633.74,632.24,0.942]
[1740937709234,0.26583051,633.73,632.24,0.942]
[1740937709432,2.39249912,633.62,632.24,0.942]
[1740937709628,0.26583051,633.61,632.24,0.942]
[1740937709835,0.26583051,633.6,632.24,0.942]
[1740937710034,0.26583051,633.59,632.24,0.942]
[1740937710430,0.26583051,633.58,632.24,0.942]
[1740937710631,0.31567649,633.56,632.24,0.942]
[1740937710836,0.26583051,633.55,632.24,0.942]
[1740937711028,0.26583051,633.54,632.24,0.942]
[1740937711228,2.39249912,633.5,632.24,0.942]
[1740937711433,0.26583051,633.49,632.24,0.942]
[1740937711634,0.26583051,633.48,632.24,0.942]
[1740937711832,0.26583051,633.47,632.24,0.942]
[1740937712028,0.26583051,633.46,632.24,0.942]
[1740937712234,0.26583051,633.45,632.24,0.942]
[1740937712433,0.26583051,633.44,632.24,0.942]
[1740937712631,0.26583051,633.43,632.24,0.942]
[1740937712834,0.26583051,633.42,632.24,0.942]
[1740937713035,0.26583051,633.41,632.24,0.942]
[1740937713237,0.26583051,633.4,632.24,0.942]
[1740937713436,0.26583051,633.39,632.24,0.942]
[1740937713735,0.58159671,633.38,632.24,0.942]
[1740937713935,0.26583051,633.37,632.24,0.942]
[1740937714234,0.26583051,633.36,632.24,0.942]
[1740937714430,0.26583051,633.35,632.24,0.942]
[1740937714635,0.26583051,633.34,632.24,0.942]
[1740937714931,0.3157662,633.38,632.24,0.942]
[1740937715133,0.26588144,633.37,632.24,0.942]
[1740937715334,0.26588144,633.36,632.24,0.942]
[1740937715635,0.26588144,633.35,632.24,0.942]
[1740937715837,0.26588144,633.34,632.24,0.942]
[1740937716030,0.26588144,633.33,632.24,0.942]
[1740937716234,0.26588144,633.32,632.24,0.942]
[1740937716433,0.26588144,633.31,632.24,0.942]
[1740937716637,0.26588144,633.3,632.24,0.942]